fUST/lending_fUST_20251221
["ID","MTS","AMOUNT","RATE_DAILY","PERIOD"]
[399307386,1766274637615,-463.07368414,0.00011985,2]
[399307388,1766274637624,-883.0079146,0.00011985,2]
[399307409,1766274637792,-296.26393716,0.00011985,2]
[399307412,1766274637803,-1009.92589272,0.00011985,2]
[399307414,1766274637813,-16000.02,0.00011985,2]
[399307416,1766274637822,-10755.85446874,0.00012005,2]
[399307418,1766274637833,-444.74195728,0.00012005,2]
[399307616,1766274639828,-804.7719191,0.00012005,2]
[399307755,1766274642730,-5396.0609,0.00012005,2]
[399307758,1766274642741,-629.45209132,0.00012005,2]
[399307760,1766274642752,-4408.35,0.00012005,2]
[399307771,1766274642852,-15109.80078317,0.00012005,2]
[399307817,1766274647673,4293.27235202,0.00011753,5]
[399307818,1766274657095,7000.0,0.0003287,120]
[399307819,1766274660649,3203.44566444,0.00032877,120]
[399307820,1766274669915,343.47646527,0.00032877,120]
[399307821,1766274674166,150.0,9.015e-05,2]
[399307822,1766274674594,150.0,9.234e-05,2]
[399307823,1766274674788,6689.57,0.0003287,120]
[399307824,1766274675012,159.13,9.454e-05,2]
[399307825,1766274675433,212.17,9.674e-05,2]
[399307826,1766274675844,265.21,9.894e-05,2]
[399307827,1766274676277,318.25,0.00010114,2]
[399307828,1766274676736,192.01807318,0.00010334,2]
[399307829,1766274676765,179.28192682,0.00010334,2]
[399307830,1766274677168,424.34,0.00010554,2]
[399307831,1766274678038,477.38,0.00010774,2]
[399307832,1766274678457,530.42,0.00010993,2]
[399307833,1766274705298,50000.0,0.0003287,120]
[399307834,1766274748018,150.0,9.014e-05,2]
[399307835,1766274748395,150.0,9.234e-05,2]
[399307836,1766274748797,150.0,9.453e-05,2]
[399307837,1766274749195,150.0,9.673e-05,2]
[399307838,1766274749619,150.0,9.893e-05,2]
[399307839,1766274750043,150.0,0.00010113,2]
[399307840,1766274750449,150.0,0.00010333,2]
[399307841,1766274834440,1727.2265184,0.00011854,2]
[399307842,1766274955571,5000.0,0.00011854,2]
[399307843,1766274978608,611.36155478,0.00011854,2]
[399307844,1766274978637,4388.63844522,0.00011854,2]
[399307845,1766275002165,5000.0,0.00011854,2]
[399307846,1766275015542,305.252587,0.00032877,120]
[399307847,1766275021291,305.252579,0.00032877,120]
[399307848,1766275026147,305.252579,0.00032877,120]
[399307849,1766275026220,611.37155478,0.00011854,2]
[399307850,1766275026247,4388.62844522,0.00011854,2]
[399307851,1766275031113,305.252579,0.00032877,120]
[399307852,1766275035574,305.252579,0.00032877,120]
[399307853,1766275040736,305.252579,0.00032877,120]
[399307854,1766275045084,305.252579,0.00032877,120]
[399307855,1766275049953,5000.0,0.00011854,2]
[399307856,1766275050068,305.252579,0.00032877,120]
[399307857,1766275054494,305.252579,0.00032877,120]
[399307858,1766275060280,305.252579,0.00032877,120]
[399307859,1766275066066,305.252579,0.00032877,120]
[399307860,1766275070257,305.252579,0.00032877,120]
[399307861,1766275075672,305.252579,0.00032877,120]
[399307862,1766275080519,305.252579,0.00032877,120]
[399307863,1766275084707,305.252579,0.00032877,120]
[399307864,1766275088784,305.252579,0.00032877,120]
[399307865,1766275092913,305.252579,0.00032877,120]
[399307866,1766275097231,305.252579,0.00032877,120]
[399307867,1766275101272,305.252579,0.00032877,120]
[399307868,1766275105236,305.252579,0.00032877,120]
[399307869,1766275283610,5000.0,0.00032877,120]
[399307870,1766275302715,5000.0,0.00032877,120]
[399307871,1766275317521,2000.0,0.00032877,120]
[399307872,1766275321499,3000.0,0.00032877,120]
[399307873,1766275329576,611.38155478,0.00011776,2]
[399307874,1766275329603,1279.39839531,0.00011776,2]
[399307875,1766275359819,5424.08352324,0.00032877,120]
[399307876,1766275401543,209.27638218,0.00011513,3]
[399307877,1766275475593,5000.0,0.00011854,2]
[399307878,1766275499605,3511.33522251,0.00011854,2]
[399307879,1766275499635,1488.66477749,0.00011854,2]
[399307880,1766275522506,5000.0,0.00011854,2]
[399307881,1766275546019,3511.34522251,0.00011854,2]
[399307882,1766275546050,1488.65477749,0.00011854,2]
[399307883,1766275558413,226.98102376,0.00011513,3]
[399307884,1766275569581,5000.0,0.00011854,2]
[399307885,1766275587584,3284.37419875,0.00011808,2]
[399307886,1766275587613,10000.01,0.00011808,2]
[399307887,1766275587642,10000.01,0.00011808,2]
[399307888,1766275587670,10000.01,0.00011808,2]
[399307889,1766275587699,10000.01,0.00011808,2]
[399307890,1766275587729,10000.01,0.00011808,2]
[399307891,1766275587759,10000.01,0.00011808,2]
[399307892,1766275593290,5000.0,0.00011767,2]
[399307893,1766275626957,-5000.0,0.0001169,2]
[399307894,1766275627127,-300.0,0.00011807,2]
[399307895,1766275638063,-481.02192682,0.00011808,2]
[399307896,1766275638180,-10000.01,0.00011808,2]
[399307897,1766275638338,-10000.01,0.00011808,2]
[399307898,1766275638450,-10000.01,0.00011808,2]
[399307899,1766275638555,-10000.01,0.00011808,2]
[399307900,1766275659449,-5000.0,0.0001169,2]
[399307901,1766275659501,-0.01,0.00011808,2]
[399307902,1766275659957,-10000.01,0.00011808,2]
[399307903,1766275660755,-10000.01,0.00011808,2]
[399307904,1766275660772,-10000.01,0.00011808,2]
[399307905,1766275679329,-5000.0,0.0001169,2]
[399307906,1766275679372,-0.01,0.00011807,2]
[399307908,1766275690024,-5000.0,0.00011689,2]
[399307909,1766275706527,0.01,0.00011513,3]
[399307910,1766275706553,222.15507752,0.00011513,3]
[399307911,1766275713128,5000.0,0.00011747,2]
[399307912,1766275736879,4777.85492248,0.00011747,2]
[399307913,1766275736905,222.14507752,0.00011747,2]
[399307914,1766275760351,5000.0,0.00011747,2]
[399307915,1766275773291,150.0,8.668e-05,2]
[399307916,1766275773722,150.0,9.081e-05,2]
[399307917,1766275774517,150.0,9.493e-05,2]
[399307918,1766275774606,150.0,9.906e-05,2]
[399307919,1766275783788,4177.86492248,0.00011747,2]
[399307920,1766275783814,822.13507752,0.00011747,2]
[399307921,1766275807980,5000.0,0.00011747,2]
[399307924,1766275830980,4177.87492248,0.00011747,2]
[399307925,1766275831007,822.12507752,0.00011747,2]
[399308147,1766275837805,-300.0,0.00011806,2]
[399308148,1766275837817,-300.0,0.00011806,2]
[399308149,1766275837827,-199.37275177,0.00011807,2]
[399308150,1766275837837,-192.35470521,0.00011807,2]
[399308151,1766275837846,-75.58120028,0.00011807,2]
[399308152,1766275837858,-107.4805857,0.00011807,2]
[399308153,1766275837867,-256.20790074,0.00011807,2]
[399308154,1766275837876,-427.86792639,0.00011807,2]
[399308155,1766275837886,-500.0,0.00011807,2]
[399308156,1766275837895,-187.70768194,0.00011807,2]
[399308157,1766275837905,-1238.79351279,0.00011807,2]
[399308158,1766275837917,-629.14047728,0.00011808,2]
[399308159,1766275837937,-748.8671078,0.00011808,2]
[399308160,1766275838524,150.0,8.682e-05,2]
[399308161,1766275838954,150.0,9.095e-05,2]
[399308162,1766275839391,150.0,9.509e-05,2]
[399308170,1766275839848,172.82,9.922e-05,2]
[399308200,1766275840142,-7227.43434663,0.00011808,2]
[399308218,1766275840287,216.03,0.00010335,2]
[399308298,1766275841047,259.23,0.00010749,2]
[399308307,1766275841125,302.44,0.00011162,2]
[399308349,1766275841526,345.64,0.00011576,2]
[399308413,1766275842949,-2439.68728602,0.00011808,2]
[399308428,1766275855042,5000.0,0.00011747,2]
[399308429,1766275861130,670.36795852,0.00011513,3]
[399308430,1766275863336,194.4104233,0.00010766,2]
[399308431,1766275866484,777.6416932,0.00011339,2]
[399308432,1766275877987,5000.0,0.00011747,2]
[399308433,1766275898521,7999.94999999,0.00032877,120]
[399308434,1766275901256,5000.0,0.00011747,2]
[399308435,1766275913118,0.01,8.219e-05,2]
[399308436,1766275913252,149.99,8.219e-05,2]
[399308437,1766275913559,150.0,8.61e-05,2]
[399308438,1766275913937,150.0,9.001e-05,2]
[399308439,1766275914371,150.0,9.393e-05,2]
[399308440,1766275914779,150.0,9.784e-05,2]
[399308441,1766275915209,150.0,0.00010175,2]
[399308442,1766275915620,150.0,0.00010567,2]
[399308443,1766275916039,167.85,0.00010958,2]
[399308444,1766275916455,188.83,0.0001135,2]
[399308445,1766275916876,209.82,0.00011741,2]
[399308446,1766275925480,5000.0,0.00011747,2]
[399308447,1766275945563,546.01259445,0.00011707,2]
[399308448,1766275949227,2837.50740555,0.00011747,2]
[399308449,1766275949346,2162.49259445,0.00011747,2]
[399308450,1766275973305,5000.0,0.00011747,2]
[399308451,1766275973723,2837.51740555,0.00010959,2]
[399308452,1766275973846,718.76301925,0.00010959,2]
[399308453,1766275997340,5000.0,0.00011747,2]
[399308454,1766276010807,736.57950389,0.00011127,2]
[399308455,1766276012409,1325.843107,0.00011482,2]
[399308456,1766276020737,2218.82436986,0.00011747,2]
[399308457,1766276020905,2781.17563014,0.00011747,2]
[399308458,1766276043957,5000.0,0.00011747,2]
[399308459,1766276067123,2218.83436986,0.00011747,2]
[399308460,1766276067257,2781.16563014,0.00011747,2]
[399308461,1766276090526,5000.0,0.00011747,2]
[399308462,1766276114791,2218.84436986,0.00011747,2]
[399308463,1766276114925,2781.15563014,0.00011747,2]
[399308464,1766276138461,5000.0,0.00011747,2]
[399308465,1766276161727,2218.85436986,0.00011747,2]
[399308466,1766276161863,2781.14563014,0.00011747,2]
[399308467,1766276170544,991.0348102,0.00011738,2]
[399308468,1766276174101,2475.28583286,0.00011556,2]
[399308469,1766276190176,3752.5437268,0.00011747,2]
[399308470,1766276190308,1247.4562732,0.00011747,2]
[399308471,1766276213303,5000.0,0.00011747,2]
[399308472,1766276238535,3752.5537268,0.00011747,2]
[399308473,1766276238663,1247.4462732,0.00011747,2]
[399308474,1766276262484,5000.0,0.00011747,2]
[399308475,1766276286426,3752.5637268,0.00011747,2]
[399308476,1766276297010,-1247.4362732,0.00011747,2]
[399308477,1766276309946,5000.0,0.00011747,2]
[399308478,1766276325706,3157.26809596,0.00032876,120]
[399308479,1766276506963,84028.48845999,0.0003287,120]
[399308480,1766276507734,850.0,0.00032876,120]
[399308481,1766276517721,792.82784816,0.0001174,2]
[399308482,1766276536176,6160.227488,0.00030137,120]
[399308483,1766276590857,158.34327964,0.00032876,120]
[399308484,1766276600489,1712.30960544,0.00011708,2]
[399308485,1766276600626,10000.01,0.00011708,2]
[399308486,1766276600767,10000.01,0.00011708,2]
[399308487,1766276600911,10000.01,0.00011708,2]
[399308488,1766276601054,10000.01,0.00011708,2]
[399308489,1766276601195,10000.01,0.00011708,2]
[399308490,1766276601337,10000.01,0.00011708,2]
[399308491,1766276601473,10000.01,0.00011708,2]
[399308492,1766276601610,10000.01,0.00011708,2]
[399308493,1766276601744,10000.01,0.00011708,2]
[399308494,1766276642531,-300.0,0.00011707,2]
[399308495,1766276642955,-300.0,0.00011707,2]
[399308496,1766276657051,-2108.86619818,0.00011708,2]
[399308497,1766276657477,-10000.01,0.00011708,2]
[399308498,1766276657877,-10000.01,0.00011708,2]
[399308499,1766276658353,-10000.01,0.00011708,2]
[399308500,1766276658786,-10000.01,0.00011708,2]
[399308501,1766276669139,-10000.01,0.00011708,2]
[399308502,1766276669543,-10000.01,0.00011708,2]
[399308503,1766276669872,-10000.01,0.00011708,2]
[399308504,1766276670722,-10000.01,0.00011708,2]
[399308505,1766276670832,-10000.01,0.00011708,2]
[399308506,1766276693111,-10000.01,0.00011708,2]
[399308507,1766276693283,-10000.01,0.00011708,2]
[399308508,1766276693424,-10000.01,0.00011708,2]
[399308509,1766276693762,-10000.01,0.00011708,2]
[399308510,1766276712226,-300.0,0.00011707,2]
[399308511,1766276712564,-9400.01,0.00011708,2]
[399308512,1766276712733,-10000.01,0.00011708,2]
[399308513,1766276713013,-10000.01,0.00011708,2]
[399308514,1766276713448,-10000.01,0.00011708,2]
[399308515,1766276713873,-10000.01,0.00011708,2]
[399308516,1766276761487,-5000.0,0.00011475,2]
[399308517,1766276763852,0.01,0.00011308,2]
[399308518,1766276763986,4999.99,0.00011308,2]
[399308519,1766276805447,-5000.0,0.00011475,2]
[399308520,1766276811278,0.01,0.00011475,2]
[399308521,1766276811422,4999.99,0.00011475,2]
[399308536,1766276845753,-661.26660395,0.00011474,2]
[399308537,1766276847740,-183.24628112,0.00011474,2]
[399308539,1766276849338,-388.0294668,0.00011474,2]
[399308542,1766276854858,-270.35160461,0.00011474,2]
[399308543,1766276863175,-172.81535219,0.00011474,2]
[399308545,1766276864595,-379.78237575,0.00011474,2]
[399308549,1766276869496,-273.02954409,0.00011474,2]
[399308551,1766276871194,-347.48922955,0.00011474,2]
[399308555,1766276875076,-182.48553656,0.00011474,2]
[399308556,1766276876982,-269.12398753,0.00011474,2]
[399308557,1766276879603,-536.91736305,0.00011474,2]
[399308558,1766276881078,-167.86969155,0.00011474,2]
[399308559,1766276883166,423.72037392,0.00010618,2]
[399308560,1766276885680,-350.63631067,0.00011474,2]
[399308561,1766276888452,-190.2842819,0.00011474,2]
[399308563,1766276893241,-224.52797329,0.00011474,2]
[399308564,1766276895011,-298.31154282,0.00011474,2]
[399308566,1766276907443,286.17265903,0.00011158,2]
[399308567,1766276909034,303.79716199,0.00011158,2]
[399308568,1766276915237,507.91000721,0.00011094,2]
[399308569,1766276917994,5000.0,0.00011308,2]
[399308570,1766276919493,-103.83285457,0.00011474,2]
[399308571,1766276919516,-143.83821069,0.00011501,2]
[399308572,1766276922209,-541.2923784,0.00011501,2]
[399308573,1766276925839,-218.85660862,0.00011501,2]
[399308574,1766276925993,3478.40979785,0.00011308,2]
[399308575,1766276926137,1521.59020215,0.00011308,2]
[399308576,1766276942291,5000.0,0.00011308,2]
[399308577,1766276950613,3478.41979785,0.00011308,2]
[399308578,1766276950748,1521.58020215,0.00011308,2]
[399308581,1766276966590,5000.0,0.00011308,2]
[399308582,1766276975425,5000.0,0.00011308,2]
[399308584,1766276991772,848.68064314,0.00011308,2]
[399308585,1766277000322,5000.0,0.00011308,2]
[399308586,1766277001015,150.0,9.125e-05,2]
[399308589,1766277024262,1476.06500466,0.00011308,2]
[399308590,1766277024411,3523.93499534,0.00011308,2]
[399308624,1766277032021,-10.25081526,0.00011501,2]
[399308625,1766277032030,-582.0,0.00011501,2]
[399308627,1766277032039,-15.26418488,0.0001159,2]
[399308636,1766277032129,-1184.73581512,0.0001159,2]
[399308638,1766277032151,-3101.4209,0.00011591,2]
[399308640,1766277032170,-634.26227856,0.00011645,2]
[399308642,1766277032180,-250.0,0.00011701,2]
[399308645,1766277032190,-500.0,0.00011701,2]
[399308647,1766277032199,-250.0,0.00011701,2]
[399308649,1766277032208,-500.0,0.00011701,2]
[399308651,1766277032218,-250.0,0.00011701,2]
[399308653,1766277032227,-500.0,0.00011701,2]
[399308655,1766277032236,-250.0,0.00011701,2]
[399308657,1766277032245,-500.0,0.00011701,2]
[399308659,1766277032254,-500.0,0.00011701,2]
[399308661,1766277032263,-250.0,0.00011701,2]
[399308663,1766277032273,-250.0,0.00011701,2]
[399308665,1766277032282,-310.31674862,0.00011701,2]
[399308667,1766277032292,-250.0,0.00011701,2]
[399308669,1766277032301,-244.16847174,0.00011701,2]
[399308671,1766277032310,-574.12855637,0.00011701,2]
[399308673,1766277032320,-2773.56790519,0.00011701,2]
[399308675,1766277032328,-9.70946515,0.00011701,2]
[399308677,1766277032340,-1780.10346347,0.00011701,2]
[399308680,1766277038017,-153.18707138,0.00011701,2]
[399308681,1766277038027,-141.73980588,0.00011707,2]
[399308688,1766277038122,-158.26019412,0.00011707,2]
[399308689,1766277038132,-174.0,0.00011707,2]
[399308690,1766277038141,-1200.0,0.00011707,2]
[399308691,1766277038151,-54479.69393678,0.00011708,2]
[399308735,1766277040458,-3e-08,0.00011708,2]
[399309017,1766277048965,5000.0,0.00011501,2]
[399309018,1766277065629,150.0,9.004e-05,2]
[399309019,1766277066039,296.64,9.433e-05,2]
[399309020,1766277066473,444.96,9.862e-05,2]
[399309021,1766277066903,593.29,0.00010291,2]
[399309022,1766277067329,741.61,0.00010719,2]
[399309023,1766277067637,916.68720197,0.00011158,2]
[399309024,1766277067790,889.93,0.00011148,2]
[399309025,1766277070710,310.38267407,0.00011158,2]
[399309026,1766277072375,5000.0,0.00011308,2]
[399309027,1766277075324,214.13414732,0.0001072,2]
[399309028,1766277076926,442.37597664,0.00011088,2]
[399309029,1766277077068,414.16061265,0.00011088,2]
[399309030,1766277084772,-375.52930468,0.00011456,2]
[399309031,1766277086706,-320.63877433,0.00011456,2]
[399309032,1766277089278,-161.33498275,0.00011456,2]
[399309033,1766277092241,-277.65439106,0.00011456,2]
[399309034,1766277094263,-185.6041162,0.00011456,2]
[399309035,1766277095668,5000.0,0.00011308,2]
[399309036,1766277096222,-307.54984131,0.00011456,2]
[399309037,1766277119443,4585.84938735,0.00011308,2]
[399309038,1766277119489,414.15061265,0.00011308,2]
[399309039,1766277119570,-298.89591557,0.00011456,2]
[399309040,1766277119618,-1038.25,0.00011577,2]
[399309041,1766277119660,-300.0,0.00011707,2]
[399309042,1766277121082,-6274.88735406,0.00011708,2]
[399309043,1766277121260,-10000.01,0.00011708,2]
[399309044,1766277121524,-10000.01,0.00011708,2]
[399309045,1766277132265,-300.0,0.00011707,2]
[399309046,1766277132305,-9400.01,0.00011708,2]
[399309047,1766277132438,-10000.01,0.00011708,2]
[399309048,1766277132534,-10000.01,0.00011708,2]
[399309049,1766277132681,-10000.01,0.00011708,2]
[399309050,1766277132872,-10000.01,0.00011708,2]
[399309051,1766277133020,-10000.01,0.00011708,2]
[399309052,1766277142564,150.0,9.02e-05,2]
[399309053,1766277142994,191.11,9.449e-05,2]
[399309054,1766277143414,286.67,9.879e-05,2]
[399309055,1766277145516,-372.24902152,0.00010308,2]
[399309056,1766277149969,-9.97097848,0.00010308,2]
[399309057,1766277149995,-214.89751814,0.00010738,2]
[399309058,1766277151839,-189.24179487,0.00010738,2]
[399309059,1766277152947,-73.64068699,0.00010738,2]
[399309060,1766277152981,-573.34,0.00011167,2]
[399309061,1766277153010,-3706.04862602,0.0001159,2]
[399309062,1766277153074,-1293.95137398,0.0001159,2]
[399309063,1766277153124,-668.89,0.00011597,2]
[399309064,1766277202439,-5000.0,0.00011628,2]
[399309065,1766277202474,-0.01,0.00011692,2]
[399309066,1766277202720,-1066.4208346,0.00011692,2]
[399309067,1766277202748,-294.87321152,0.00011707,2]
[399309068,1766277202776,-300.0,0.00011707,2]
[399309069,1766277202806,-453.81221045,0.00011707,2]
[399309070,1766277202874,-5769.79748686,0.00011708,2]
[399309071,1766277202901,-10000.01,0.00011708,2]
[399309072,1766277210908,10000.0,0.00032877,120]
[399309073,1766277213477,-5000.0,0.00011591,2]
[399309074,1766277213514,-0.01,0.00011665,2]
[399309075,1766277225304,1767.0,0.00032877,120]
[399309076,1766277233740,150.0,8.888e-05,2]
[399309077,1766277234175,246.97,9.312e-05,2]
[399309078,1766277234553,370.45,9.735e-05,2]
[399309079,1766277234758,5000.0,0.00011225,2]
[399309080,1766277234971,493.93,0.00010158,2]
[399309081,1766277235467,617.42,0.00010581,2]
[399309082,1766277235906,740.9,0.00011005,2]
[399309083,1766277242720,-390.23016607,0.00011261,2]
[399309084,1766277258790,5000.0,0.00011261,2]
[399309085,1766277281988,4219.54966786,0.00011261,2]
[399309086,1766277282009,780.45033214,0.00011261,2]
[399309087,1766277311314,179.13,8.694e-05,2]
[399309088,1766277311722,358.26,9.108e-05,2]
[399309089,1766277312595,537.39,9.522e-05,2]
[399309090,1766277313482,716.51,9.936e-05,2]
[399309091,1766277313908,895.64,0.0001035,2]
[399309092,1766277313942,5000.0,0.00011218,2]
[399309093,1766277314310,1074.77,0.00010764,2]
[399309094,1766277314736,1238.31,0.00011178,2]
[399309095,1766277326014,-15.59,0.00011178,2]
[399309096,1766277339564,5000.0,0.00011178,2]
[399309097,1766277340843,-304.5886583,0.00011355,2]
[399309098,1766277342379,-500.0,0.00011355,2]
[399309099,1766277343920,-391.62789792,0.00011355,2]
[399309100,1766277362352,4968.83,0.00011178,2]
[399309101,1766277362375,31.17,0.00011178,2]
[399309102,1766277378768,236.04384981,0.00010614,2]
[399309103,1766277380041,944.17539923,0.00011008,2]
[399309104,1766277385002,5000.0,0.00011178,2]
[399309105,1766277390092,169.28,8.403e-05,2]
[399309106,1766277390508,338.56,8.803e-05,2]
[399309107,1766277390916,507.84,9.203e-05,2]
[399309108,1766277391352,677.13,9.603e-05,2]
[399309109,1766277391831,846.41,0.00010003,2]
[399309110,1766277392423,1015.69,0.00010403,2]
[399309111,1766277392810,233.71075096,0.00010804,2]
[399309112,1766277392837,951.25924904,0.00010804,2]
[399309113,1766277400373,-401.90081346,0.00011204,2]
[399309114,1766277404705,-238.97963543,0.00011204,2]
[399309115,1766277406377,-235.52839747,0.00011204,2]
[399309116,1766277407859,5000.0,0.00011178,2]
[399309117,1766277408460,-228.77823356,0.00011204,2]
[399309118,1766277411848,-193.54,0.00011204,2]
[399309119,1766277430629,4048.75075096,0.00011178,2]
[399309120,1766277430653,951.24924904,0.00011178,2]
[399309121,1766277453030,5000.0,0.00011178,2]
[399309122,1766277459721,-55.52292008,0.00011204,2]
[399309123,1766277459743,-373.4453312,0.0001128,2]
[399309124,1766277468337,150.0,8.407e-05,2]
[399309125,1766277468747,183.44,8.807e-05,2]
[399309126,1766277469351,275.16,9.207e-05,2]
[399309127,1766277470250,366.88,9.608e-05,2]
[399309128,1766277470286,458.6,0.00010008,2]
[399309129,1766277470624,550.32,0.00010408,2]
[399309130,1766277471020,642.04,0.00010809,2]
[399309131,1766277474790,-300.0,0.00011209,2]
[399309132,1766277476849,-433.76,0.00011209,2]
[399309133,1766277476872,-14.5351088,0.0001128,2]
[399309134,1766277477224,1422.32075096,0.00011178,2]
[399309135,1766277477255,3577.67924904,0.00011178,2]
[399309136,1766277504710,-330.92244359,0.00011167,2]
[399309137,1766277511020,-235.52839747,0.00011167,2]
[399309138,1766277516383,5000.0,0.0001111,2]
[399309139,1766277522897,327.25613131,0.00011008,2]
[399309140,1766277540510,4672.75386869,0.0001111,2]
[399309141,1766277540533,327.24613131,0.0001111,2]
[399309142,1766277545913,150.0,8.419e-05,2]
[399309143,1766277546332,160.65,8.82e-05,2]
[399309144,1766277546747,240.98,9.221e-05,2]
[399309145,1766277547187,321.3,9.622e-05,2]
[399309146,1766277547602,401.63,0.00010023,2]
[399309147,1766277548033,481.95,0.00010424,2]
[399309148,1766277548490,562.28,0.00010825,2]
[399309149,1766277563723,4155.10920613,0.0001111,2]
[399309150,1766277622700,150.0,8.476e-05,2]
[399309151,1766277623117,150.0,8.88e-05,2]
[399309152,1766277623551,152.44,9.283e-05,2]
[399309153,1766277623962,203.25,9.687e-05,2]
[399309154,1766277624374,254.07,0.00010091,2]
[399309155,1766277624763,304.88,0.00010494,2]
[399309156,1766277625166,355.69,0.00010898,2]
[399309157,1766277682495,5000.0,0.00011116,2]
[399309158,1766277697945,150.0,8.489e-05,2]
[399309159,1766277698339,150.0,8.894e-05,2]
[399309160,1766277698776,150.0,9.298e-05,2]
[399309161,1766277699192,150.0,9.702e-05,2]
[399309162,1766277699606,154.14,0.00010106,2]
[399309163,1766277700031,184.96,0.00010511,2]
[399309164,1766277700435,215.79,0.00010915,2]
[399309165,1766277705899,3845.12,0.00011116,2]
[399309166,1766277705923,1154.88,0.00011116,2]
[399309167,1766277730391,5000.0,0.00011116,2]
[399309168,1766277753181,3845.13,0.00011116,2]
[399309169,1766277753205,1154.87,0.00011116,2]
[399309170,1766277769875,150.0,8.615e-05,2]
[399309171,1766277770273,150.0,9.026e-05,2]
[399309188,1766277770689,150.0,9.436e-05,2]
[399309206,1766277771105,150.0,9.846e-05,2]
[399309225,1766277771533,150.0,0.00010256,2]
[399309245,1766277771984,150.0,0.00010667,2]
[399309255,1766277772431,150.0,0.00011077,2]
[399309256,1766277776597,5000.0,0.00011116,2]
[399309257,1766277800635,2795.14,0.00011116,2]
[399309258,1766277800657,2204.86,0.00011116,2]
[399309259,1766277824548,5000.0,0.00011116,2]
[399309260,1766277838307,150.0,8.575e-05,2]
[399309261,1766277848747,2645.15,0.00011116,2]
[399309262,1766277848771,2354.85,0.00011116,2]
[399309263,1766277871915,5000.0,0.00011116,2]
[399309264,1766277895501,2645.16,0.00011116,2]
[399309265,1766277895524,2354.84,0.00011116,2]
[399309266,1766277919051,5000.0,0.00011116,2]
[399309267,1766277942018,2645.17,0.00011116,2]
[399309268,1766277942041,2354.83,0.00011116,2]
[399309269,1766277966191,5000.0,0.00011116,2]
[399309270,1766277989675,2645.18,0.00011116,2]
[399309271,1766277989707,2354.82,0.00011116,2]
[399309272,1766277999121,-577.0,0.00011167,2]
[399309273,1766277999142,-447.19406437,0.00011173,2]
[399309274,1766277999163,-314.0,0.00011178,2]
[399309275,1766277999182,-300.0,0.00011233,2]
[399309276,1766277999202,-300.0,0.00011288,2]
[399309277,1766277999224,-300.0,0.00011315,2]
[399309278,1766277999243,-300.0,0.0001137,2]
[399309279,1766277999263,-2773.56790519,0.00011395,2]
[399309280,1766277999284,-300.0,0.00011397,2]
[399309281,1766277999305,-420.41078209,0.00011426,2]
[399309282,1766277999324,-3253.61463573,0.00011587,2]
[399309283,1766278039743,498.0,0.00032876,120]
[399309284,1766278049137,22078.0,0.00032877,120]
[399309286,1766278224974,1000.0,0.00032876,120]
[399309300,1766278232394,-462.228,0.00011471,2]
[399309304,1766278238348,-118.772,0.00011471,2]
[399309305,1766278238357,-381.228,0.00011479,2]
[399309306,1766278238369,-1509.55195008,0.00011479,2]
[399309307,1766278238379,-438.25018308,0.00011484,2]
[399309308,1766278238390,-589.45723147,0.00011487,2]
[399309309,1766278238399,-589.45723146,0.00011493,2]